bitfinex/quotes_SOLUSD_20251127
["timestamp","ask_amount","ask_price","bid_price","bid_amount"]
[1764218541218,8.80994492,142.95,142.92,0.66]
[1764218541801,15.80553813,142.95,142.92,0.66]
[1764218542000,16.48553813,142.95,142.92,0.66]
[1764218543319,0.68,142.98,142.92,3.74]
[1764218543503,0.68,142.97,142.93,3.68315109]
[1764218543699,3.56098952,142.97,142.93,19.84985352]
[1764218543899,3.56098952,142.97,142.93,0.66]
[1764218544097,0.68,142.96,142.93,0.66]
[1764218544317,6.64098952,142.97,142.93,0.66]
[1764218544720,0.68,142.96,142.93,0.66]
[1764218545107,29.26441353,142.97,142.93,0.66]
[1764218545307,29.94441353,142.97,142.93,0.66]
[1764218545931,0.68,142.96,142.93,0.66]
[1764218546620,27.06342401,142.97,142.93,2.50320021]
[1764218548227,10.65314513,142.95,142.92,21.01649795]
[1764218548407,8.80994492,142.95,142.92,61.5]
[1764218548604,8.80994492,142.95,142.93,0.66]
[1764218550610,8.80994492,142.95,142.92,63.34320021]
[1764218550918,9.48994492,142.95,142.92,64.00320021]
[1764218551435,16.48544797,142.95,142.92,64.00320021]
[1764218552331,8.80994492,142.95,142.92,63.34320021]
[1764218552536,8.80994492,142.95,142.93,0.66]
[1764218552935,9.48994492,142.95,142.92,64.00320021]
[1764218555238,9.48994492,142.95,142.92,71.00001707]
[1764218555535,11.88994492,142.96,142.93,2.50320021]
[1764218555743,27.06350195,142.97,142.93,2.50320021]
[1764218556034,27.06350195,142.97,142.94,0.66]
[1764218557715,27.06350195,142.97,142.94,62.16]
[1764218561948,0.68,142.96,142.94,61.5]
[1764218562540,8.80994492,142.95,142.94,61.5]
[1764218562715,13.73314513,142.95,142.94,61.5]
[1764218563039,14.41314513,142.95,142.94,61.5]
[1764218564331,21.40859808,142.95,142.94,61.5]
[1764218564843,19.56539787,142.95,142.94,61.5]
[1764218569439,21.40859808,142.95,142.94,61.5]
[1764218569644,21.40859808,142.95,142.9,65.25]
[1764218569844,0.68,142.94,142.9,65.25]
[1764218570359,21.70091581,142.94,142.9,65.25]
[1764218570556,28.69720474,142.94,142.9,64.58]
[1764218570757,28.69720474,142.94,142.91,0.67]
[1764218572153,0.68,142.93,142.9,67.09320021]
[1764218573238,0.68,142.93,142.9,65.25]
[1764218573437,0.68,142.93,142.91,0.67]
[1764218573638,28.69720474,142.94,142.91,0.67]
[1764218573838,0.68,142.93,142.9,65.25]
[1764218574141,15.80735587,142.91,142.9,61.5]
[1764218574655,16.48735587,142.91,142.9,61.5]
[1764218574851,16.48735587,142.91,142.87,64.21320021]
[1764218574852,37.51269139,142.91,142.87,64.21320021]
[1764218575053,37.51269139,142.91,142.87,70.54244502]
[1764218575054,21.02533552,142.91,142.87,70.54244502]
[1764218575237,10.75694491,142.92,142.88,2.51320021]
[1764218575438,31.78080699,142.92,142.88,2.51320021]
[1764218575651,31.78080699,142.92,142.89,2.51320021]
[1764218575838,10.75694491,142.92,142.89,2.51320021]
[1764218576758,10.75694491,142.92,142.89,0.67]
[1764218576956,11.33314513,142.91,142.87,0.2]
[1764218577457,0.68,142.9,142.87,0.2]
[1764218578961,7.67820787,142.9,142.87,0.2]
[1764218579163,0.68,142.89,142.87,0.2]
[1764218582069,0.68,142.89,142.87,61.7]
[1764218583164,10.07820787,142.9,142.87,61.7]
[1764218583338,0.68,142.89,142.87,61.7]
[1764218587382,0.68,142.89,142.87,0.2]
[1764218592193,12.64140808,142.9,142.87,0.9]
[1764218592555,0.72,142.89,142.87,0.2]
[1764218593284,0.72,142.89,142.87,61.7]
[1764218597762,0.72,142.89,142.87,62.4]
[1764218597964,0.72,142.89,142.87,61.7]
[1764218600292,29.8367541,142.91,142.88,2.68536178]
[1764218600589,8.80994492,142.93,142.9,1.84320021]
[1764218600981,9.52994492,142.93,142.9,2.54320021]
[1764218601293,9.52994492,142.93,142.9,1.84320021]
[1764218601469,9.52994492,142.93,142.9,2.54320021]
[1764218602089,15.80649169,142.93,142.91,0.7]
[1764218602274,6.99549998,142.95,142.91,0.7]
[1764218602593,7.71549998,142.95,142.91,2.54320021]
[1764218602895,0.72,142.97,142.93,1.84320021]
[1764218603077,11.92104825,142.98,142.93,0.14216157]
[1764218603275,0.72,142.97,142.94,2.54320021]
[1764218603480,16.308864,142.96,142.94,2.54320021]
[1764218604070,0.72,142.97,142.94,2.54320021]
[1764218604269,16.52448494,142.97,142.93,63.48536178]
[1764218604584,16.52448494,142.97,142.93,64.18536178]
[1764218604792,0.72,142.96,142.93,62.34216157]
[1764218608296,0.72,142.96,142.93,0.84216157]
[1764218608494,0.72,142.96,142.93,2.68536178]
[1764218608673,0.72,142.96,142.93,3.7219948]
[1764218608870,7.71499325,142.96,142.93,3.7219948]
[1764218609174,6.99499325,142.96,142.93,3.0219948]
[1764218609382,7.71499325,142.96,142.93,3.7219948]
[1764218612712,7.71499325,142.96,142.93,0.84216157]
[1764218614196,7.71499325,142.96,142.93,62.34216157]
[1764218614691,7.71499325,142.96,142.93,62.2]
[1764218614896,0.72,142.95,142.93,62.2]
[1764218615411,3.08,142.97,142.94,3.57983323]
[1764218615904,3.08,142.97,142.95,0.7]
[1764218617603,7.71399272,142.98,142.95,3.57983323]
[1764218617791,10.79399272,142.98,142.95,3.57983323]
[1764218618503,7.71399272,142.98,142.95,3.57983323]
[1764218618716,10.79399272,142.98,142.95,3.57983323]
[1764218619600,0.72,142.97,142.94,3.7219948]
[1764218620106,0.72,142.97,142.94,65.2219948]
[1764218621095,0.72,142.97,142.95,0.68]
[1764218621274,0.66,142.97,142.94,65.2019948]
[1764218621803,10.07399272,142.98,142.95,0.68]
[1764218622009,0.66,142.97,142.94,65.2019948]
[1764218623598,0.66,142.97,142.95,0.68]
[1764218623905,0.66,142.97,142.94,65.2019948]
[1764218624291,0.66,142.97,142.94,64.5219948]
[1764218624491,7.65399272,142.98,142.95,0.68]
[1764218624695,0.66,142.97,142.94,65.2019948]
[1764218625709,6.99399272,142.98,142.94,65.2019948]
[1764218625710,7.65399272,142.98,142.95,0.68]
[1764218625892,7.65399272,142.98,142.95,62.18]
[1764218626206,7.65448569,142.97,142.95,61.5]
[1764218626608,7.65448569,142.97,142.95,62.18]
[1764218626795,7.65448569,142.97,142.95,61.5]
[1764218630310,18.68376332,142.98,142.95,61.5]
[1764218630508,0.66,142.96,142.95,61.5]
[1764218631112,9.8738184,142.98,142.95,61.5]
[1764218631310,0.66,142.97,142.95,61.5]
[1764218634408,7.65457573,142.97,142.95,61.5]
[1764218637599,0.66,142.96,142.95,61.5]
[1764218637997,15.42977815,142.96,142.95,61.5]
[1764218639717,22.42474177,142.96,142.95,61.5]
[1764218640019,8.80994492,142.95,142.91,65.26]
[1764218640311,16.308864,142.93,142.91,61.5]
[1764218640816,16.968864,142.93,142.91,61.5]
[1764218642591,23.96546504,142.93,142.91,61.5]
[1764218644205,23.87320902,142.93,142.91,61.5]
[1764218645107,0.66,142.92,142.91,61.5]
[1764218645706,23.21320902,142.93,142.91,61.5]
[1764218645909,23.87320902,142.93,142.91,61.5]
[1764218648327,23.88320902,142.93,142.91,61.5]
[1764218653002,0.68,142.92,142.91,61.5]
[1764218653202,23.21320902,142.93,142.91,61.5]
[1764218653619,0.68,142.92,142.91,61.5]
[1764218655030,23.89320902,142.93,142.91,61.5]
[1764218656923,23.21320902,142.93,142.91,61.5]
[1764218657142,0.68,142.92,142.91,61.5]
[1764218658329,23.89320902,142.93,142.91,61.5]
[1764218664639,0.68,142.92,142.91,61.5]
[1764218664842,23.89320902,142.93,142.91,61.5]
[1764218669248,0.68,142.92,142.91,61.5]
[1764218669746,15.44977815,142.92,142.91,61.5]
[1764218670124,15.73410129,142.92,142.91,61.5]
[1764218670524,35.72609783,142.92,142.91,61.5]
[1764218670751,8.80994492,142.91,142.87,0.2]
[1764218670936,6.99790062,142.9,142.87,0.2]
[1764218671244,7.67790062,142.9,142.87,0.2]
[1764218671448,0.68,142.89,142.87,0.2]
[1764218672027,6.99790062,142.9,142.87,0.91]
[1764218672251,0.68,142.89,142.87,0.91]
[1764218673050,7.67790062,142.9,142.87,0.91]
[1764218673853,6.99790062,142.9,142.87,0.91]
[1764218674028,0.68,142.89,142.87,0.91]
[1764218674222,7.67790062,142.9,142.87,0.91]
[1764218676530,7.67790062,142.9,142.87,62.41]
[1764218683164,26.87157349,142.93,142.88,0.14216157]
[1764218683370,3.79,142.95,142.91,1.84502059]
[1764218683662,16.308864,142.93,142.91,1.84502059]
[1764218683838,16.308864,142.93,142.91,2.56502059]
[1764218684660,16.308864,142.93,142.91,0.72]
[1764218686964,17.018864,142.93,142.91,0.72]
[1764218688264,17.018864,142.93,142.91,62.22]
[1764218689851,16.308864,142.93,142.91,62.22]
[1764218690942,24.01540977,142.93,142.91,61.5]
[1764218691148,0.71,142.92,142.91,61.5]
[1764218693268,7.70692135,142.92,142.91,61.5]
[1764218696276,9.55194194,142.92,142.91,61.5]
[1764218698557,6.99692135,142.92,142.91,61.5]
[1764218699051,7.70692135,142.92,142.91,61.5]
[1764218701682,8.80994492,142.96,142.91,61.5]
[1764218701683,0.71,142.98,142.92,0.14216157]
[1764218701985,33.95830387,142.97,142.92,0.86216157]
[1764218702276,1.84502059,142.96,142.92,0.86216157]
[1764218702479,2.55502059,142.96,142.92,0.14216157]
[1764218702683,0.71,142.95,142.92,0.14216157]
[1764218702867,0.71,142.96,142.92,2.70718216]
[1764218703288,16.308864,142.95,142.93,0.72]
[1764218703899,17.018864,142.95,142.92,2.70718216]
[1764218705486,24.01434471,142.95,142.92,2.70718216]
[1764218705689,23.30434471,142.95,142.93,0.72]
[1764218706182,24.01434471,142.95,142.92,1.98718216]
[1764218706370,24.01434471,142.95,142.92,2.70718216]
[1764218711283,0.68,142.94,142.9,67.10502059]
[1764218711487,3.76,142.94,142.9,64.02502059]
[1764218711786,5.60502059,142.94,142.9,62.18]
[1764218711969,0.68,142.93,142.9,62.18]
[1764218713193,0.68,142.93,142.9,64.02502059]
[1764218713484,10.75639387,142.94,142.91,0.68]
[1764218713691,10.75639387,142.94,142.91,2.52502059]
[1764218714389,26.38443953,142.95,142.92,2.52502059]
[1764218714570,26.38443953,142.95,142.92,0.68]
[1764218714777,0.68,142.94,142.91,2.52502059]
[1764218716292,0.68,142.94,142.9,63.34502059]
[1764218716477,0.68,142.94,142.9,64.02502059]
[1764218716678,7.67636853,142.94,142.9,64.02502059]
[1764218717296,7.67636853,142.94,142.91,0.68]
[1764218717994,7.67636853,142.94,142.91,62.18]
[1764218719496,0.68,142.93,142.91,64.02502059]
[1764218719705,0.68,142.93,142.91,62.18]
[1764218721303,7.67645379,142.93,142.91,61.5]
[1764218723398,0.68,142.92,142.91,61.5]
[1764218725185,32.79573027,142.92,142.88,3.08]
[1764218725390,28.91080594,142.92,142.88,3.76]
[1764218725586,23.30578535,142.92,142.88,1.98718216]
[1764218725800,23.30578535,142.92,142.88,2.66718216]
[1764218725801,0.68,142.91,142.88,2.66718216]
[1764218726301,27.06578535,142.92,142.89,0.68]
[1764218726888,11.33496551,142.91,142.87,0.2]
[1764218727218,3.08,142.9,142.87,0.2]
[1764218727422,3.76,142.9,142.87,0.2]
[1764218727601,0.68,142.89,142.87,0.2]
[1764218729286,10.75834578,142.9,142.87,0.88]
[1764218731517,3.08,142.92,142.89,2.88251989]
[1764218731703,6.99663409,142.93,142.9,2.88251989]
[1764218731907,7.67663409,142.93,142.9,64.38251989]
[1764218732110,0.68,142.92,142.9,64.38251989]
[1764218732823,6.99663409,142.93,142.9,64.38251989]
[1764218733112,7.67663409,142.93,142.9,65.06251989]
[1764218734210,7.67663409,142.93,142.9,62.18]
[1764218734815,0.68,142.92,142.9,61.5]
[1764218741812,52.68795296,142.95,142.9,61.5]
[1764218741813,26.38920358,142.95,142.91,3.68468146]
[1764218742114,0.71,142.96,142.91,3.68468146]
[1764218742115,6.9952969,142.96,142.92,2.88251989]
[1764218742315,0.71,142.95,142.92,65.04251989]
[1764218743819,0.71,142.95,142.92,62.16]
[1764218744915,7.70563051,142.95,142.92,0.66]
[1764218745622,7.70563051,142.95,142.92,3.54251989]
[1764218748022,0.71,142.95,142.92,3.54251989]
[1764218750708,0.71,142.95,142.92,65.04251989]
[1764218751319,7.70513447,142.96,142.93,0.66]
[1764218751521,3.59251989,142.95,142.92,61.5]
[1764218752018,0.71,142.94,142.92,61.5]
[1764218752515,7.70605792,142.94,142.92,61.5]
[1764218752723,10.58857781,142.94,142.92,61.5]
[1764218753021,0.71,142.93,142.92,61.5]
[1764218754506,44.3252633,142.95,142.92,62.16]
[1764218754706,27.09434749,142.95,142.92,62.16]
[1764218755625,26.38434749,142.95,142.92,61.5]
[1764218755800,0.71,142.94,142.92,61.5]
[1764218762133,26.38434749,142.95,142.92,61.5]
[1764218762332,27.09434749,142.95,142.92,62.16]
[1764218763429,0.71,142.94,142.92,62.16]
[1764218763634,0.71,142.94,142.92,61.5]
[1764218764219,0.71,142.94,142.92,62.16]
[1764218765135,0.71,142.94,142.92,61.5]
[1764218766115,0.71,142.94,142.92,62.16]
[1764218768047,10.58874802,142.94,142.92,61.5]
[1764218768420,0.66,142.93,142.92,61.5]
[1764218768625,7.65622813,142.94,142.9,0.71]
[1764218768825,0.66,142.93,142.9,0.71]
[1764218770226,7.6567838,142.93,142.9,0.71]
[1764218774143,0.7,142.92,142.9,0.71]
[1764218774341,0.7,142.92,142.89,3.58251989]
[1764218774520,7.6967838,142.93,142.9,0.7]
[1764218776048,6.9967838,142.93,142.9,0.7]
[1764218776454,7.6967838,142.93,142.9,0.7]
[1764218776662,7.6967838,142.93,142.9,3.58251989]
[1764218778850,15.80588727,142.94,142.9,3.58251989]
[1764218779051,0.7,142.92,142.9,3.58251989]
[1764218779253,0.7,142.93,142.9,3.58251989]
[1764218780430,0.7,142.93,142.9,65.08251989]
[1764218780947,38.77692929,142.95,142.91,3.58251989]
[1764218781149,0.7,142.94,142.92,0.7]
[1764218781339,0.7,142.94,142.91,65.08251989]
[1764218785404,16.308864,142.93,142.91,65.08251989]
[1764218786066,0.7,142.94,142.91,65.08251989]
[1764218786437,7.69594302,142.94,142.91,61.5]
[1764218786641,2.88251989,142.93,142.91,61.5]
[1764218786851,3.58251989,142.93,142.91,61.5]
[1764218787067,0.7,142.92,142.91,61.5]
[1764218787265,0.7,142.92,142.88,3.58251989]
[1764218787473,7.69698652,142.92,142.88,64.38251989]
[1764218787650,7.69698652,142.92,142.89,0.7]
[1764218788841,0.7,142.91,142.89,0.7]
[1764218789651,0.7,142.91,142.88,72.0813418]
[1764218790270,0.7,142.91,142.88,71.3813418]
[1764218790478,0.7,142.91,142.89,0.7]
[1764218791467,0.7,142.92,142.89,3.58251989]
[1764218791962,0.7,142.91,142.89,3.58251989]
[1764218792472,0.7,142.91,142.89,65.08251989]
[1764218792681,0.7,142.92,142.89,64.04422771]
[1764218792976,35.14101503,142.94,142.91,1.84422771]
[1764218792977,16.308864,142.94,142.91,1.84422771]
[1764218793171,16.308864,142.94,142.92,1.84422771]
[1764218793370,16.308864,142.94,142.92,2.54422771]
[1764218795064,16.308864,142.94,142.92,0.7]
[1764218796271,0.7,142.95,142.92,9.54111622]
[1764218798177,0.7,142.95,142.92,71.04111622]
[1764218799355,0.7,142.95,142.92,64.04422771]
[1764218802484,44.44935066,142.97,142.93,2.65638928]
[1764218802485,24.0034129,142.97,142.93,2.65638928]
[1764218802664,16.308864,142.97,142.94,1.84422771]
[1764218802871,16.308864,142.97,142.94,2.51422771]
[1764218803179,17.008864,142.97,142.94,2.51422771]
[1764218803372,17.008864,142.97,142.94,64.01422771]
[1764218804865,16.308864,142.97,142.94,70.34007666]
[1764218805070,17.008864,142.97,142.94,64.01422771]
[1764218810398,17.008864,142.97,142.94,62.17]
[1764218810690,17.008864,142.97,142.94,48.25971898]
[1764218815379,0.7,143.01,142.97,0.14216157]
[1764218815587,10.77154023,143.03,142.99,1.84422771]
[1764218815893,3.78,143.03,143.0,1.98638928]
[1764218816294,0.7,143.02,143.0,1.98638928]
[1764218816904,0.7,143.03,143.0,2.65638928]
[1764218820280,0.7,143.03,143.0,9.64937192]
[1764218820476,23.99946712,143.05,143.01,2.51422771]
[1764218820678,16.408864,143.06,143.03,1.98638928]
[1764218820883,17.108864,143.06,143.03,1.98638928]
[1764218821089,17.108864,143.06,143.03,2.65638928]
[1764218821285,16.308864,143.05,143.03,2.65638928]
[1764218821491,0.8,143.06,143.03,2.65638928]
[1764218821884,0.8,143.06,143.01,2.51422771]
[1764218822102,0.8,143.06,143.02,0.14216157]
[1764218823300,7.79020143,143.06,143.02,1.98638928]
[1764218823684,0.7,143.05,143.02,1.98638928]
[1764218824488,0.7,143.05,143.02,0.14216157]
[1764218825323,0.7,143.05,143.02,0.81216157]
[1764218825606,0.7,143.05,143.02,2.65638928]
[1764218826407,0.1,143.06,143.03,2.51422771]
[1764218826608,0.8,143.06,143.03,2.51422771]
[1764218827608,0.8,143.06,143.03,48.25971898]
[1764218827791,0.8,143.06,143.03,55.25121106]
[1764218828480,0.8,143.06,143.03,46.41549127]
[1764218830504,9.63431515,143.06,143.03,45.74549127]
[1764218830706,0.68,143.05,143.03,45.74549127]
[1764218830891,0.68,143.05,143.01,48.25971898]
[1764218831985,7.6705693,143.05,143.01,48.25971898]
[1764218832205,7.6705693,143.05,143.02,1.84422771]
[1764218832407,0.68,143.04,143.02,1.84422771]
[1764218837017,0.68,143.04,143.02,45.74549127]
[1764218838896,0.68,143.05,143.02,53.40751815]
[1764218839216,0.68,143.05,143.02,46.41549127]
[1764218839398,0.68,143.05,143.02,45.74549127]
[1764218843519,7.67056855,143.05,143.02,45.74549127]
[1764218843726,0.68,143.05,143.02,45.74549127]
[1764218844020,12.01469713,143.06,143.02,46.41549127]
[1764218844201,0.68,143.04,143.02,45.74549127]
[1764218846325,0.68,143.05,143.02,46.41549127]
[1764218847023,0.68,143.05,143.02,45.74549127]
[1764218847431,7.67057073,143.05,143.02,45.74549127]
[1764218847924,0.68,143.04,143.02,45.74549127]
[1764218849232,9.51535344,143.04,143.02,45.74549127]
[1764218849528,16.308864,143.01,143.0,45.74549127]
[1764218849833,16.988864,143.01,143.0,45.74549127]
[1764218852715,23.981382,143.01,143.0,45.74549127]
[1764218855439,8.80994492,143.0,142.96,45.74549127]
[1764218855620,19.18672669,142.97,142.94,45.74549127]
[1764218856131,19.86672669,142.97,142.94,46.41549127]
[1764218857216,16.988864,142.97,142.94,46.41549127]
[1764218858116,23.98339422,142.97,142.94,46.41549127]
[1764218858340,26.86125691,142.97,142.94,46.41549127]
[1764218859242,0.68,142.96,142.94,45.74549127]
[1764218859539,3.55786269,142.96,142.91,46.55765284]
[1764218859838,0.68,142.95,142.91,46.55765284]
[1764218860360,7.67547363,142.95,142.91,46.55765284]
[1764218860711,0.72,142.94,142.91,46.55765284]
[1764218861154,0.72,142.94,142.91,53.55505361]
[1764218861643,0.72,142.97,142.94,0.14216157]
[1764218861839,0.72,142.97,142.94,48.76551553]
[1764218862518,0.72,142.97,142.94,46.56765284]
[1764218862853,0.72,142.97,142.94,49.44551553]
[1764218864315,6.994129,142.98,142.95,0.68]
[1764218864518,6.994129,143.03,142.97,2.87786269]
[1764218864722,0.72,143.02,142.99,0.14216157]
[1764218865037,16.308864,143.01,142.99,0.14216157]
[1764218865820,7.71217645,143.02,142.99,0.14216157]
[1764218867540,16.308864,143.04,143.01,0.14216157]
[1764218867970,17.028864,143.04,143.01,0.82216157]
[1764218868751,24.02005644,143.04,143.01,0.14216157]
[1764218868934,3.59786269,143.03,142.99,3.08]
[1764218869244,3.59786269,143.03,142.99,0.82216157]
[1764218869443,0.72,143.02,142.99,0.82216157]
[1764218870141,0.72,143.02,142.99,3.70002426]
[1764218871651,0.72,143.02,142.99,0.82216157]
[1764218871848,0.72,143.02,142.99,3.70002426]
[1764218872424,16.308864,143.04,143.01,0.14216157]
[1764218872624,16.308864,143.03,143.01,0.14216157]
[1764218872836,16.308864,143.03,143.01,0.82216157]
[1764218873025,17.028864,143.03,143.0,0.68]
[1764218873649,16.308864,142.99,142.93,20.65615964]
[1764218873827,2.87786269,142.98,142.94,0.68]
[1764218874145,0.72,142.97,142.94,0.14216157]
[1764218874530,0.72,142.97,142.94,0.68]
[1764218874731,0.72,142.97,142.95,0.14216157]
[1764218877148,0.72,142.98,142.95,0.14216157]
[1764218880045,5.95786269,143.01,142.97,0.14216157]
[1764218880229,0.72,143.0,142.97,45.88765284]
[1764218881630,0.72,143.0,142.97,53.56212129]
[1764218883157,0.72,143.0,142.97,52.88212129]
[1764218883455,0.72,143.0,142.97,45.88765284]
[1764218884242,0.72,143.0,142.97,46.56765284]
[1764218886060,0.72,143.0,142.97,45.88765284]
[1764218886659,0.72,143.0,142.97,46.56765284]
[1764218889261,0.72,143.0,142.97,46.42549127]
[1764218889953,24.00102869,143.02,142.98,0.72]
[1764218890756,0.7,143.01,142.98,0.72]
[1764218890962,0.7,143.01,142.97,53.45990535]
[1764218891272,0.7,143.01,142.98,0.72]
[1764218893266,7.69261636,143.01,142.98,46.46549127]
[1764218894265,6.99261636,143.01,142.98,45.74549127]
[1764218894565,2.87786269,142.99,142.98,45.74549127]
[1764218894740,19.18672669,142.99,142.98,45.74549127]
[1764218894946,19.88672669,142.99,142.98,45.74549127]
[1764218895166,17.008864,142.99,142.98,45.74549127]
[1764218895366,19.88672669,142.99,142.98,45.74549127]
[1764218896562,26.88022273,142.99,142.98,45.74549127]
[1764218897244,26.88022273,142.99,142.95,0.14216157]
[1764218897539,26.88022273,142.99,142.95,45.88765284]
[1764218897540,0.7,142.98,142.95,45.88765284]
[1764218898244,0.7,142.98,142.95,46.60765284]
[1764218899642,7.69402716,142.98,142.95,46.60765284]
[1764218906649,6.99402716,142.98,142.95,45.88765284]
[1764218906856,7.69402716,142.98,142.95,46.60765284]
[1764218910281,7.69402716,142.98,142.95,45.74549127]
[1764218910282,6.65786269,142.97,142.95,45.74549127]
[1764218910772,0.7,142.96,142.95,45.74549127]
[1764218913181,9.87188985,142.98,142.95,45.74549127]
[1764218913361,16.308864,142.97,142.95,48.62335396]
[1764218913563,16.308864,142.97,142.95,49.34335396]
[1764218914060,10.07365792,142.99,142.95,49.34335396]
[1764218914061,10.07365792,142.99,142.96,3.59786269]
[1764218914257,27.08196905,143.0,142.96,3.59786269]
[1764218914475,0.7,142.99,142.96,2.87786269]
[1764218914780,0.7,142.99,142.96,0.14216157]
[1764218915771,7.69365298,142.99,142.96,0.14216157]
[1764218915974,0.7,142.98,142.96,0.14216157]
[1764218916159,7.69365298,142.99,142.96,0.86216157]
[1764218916359,6.99365298,142.99,142.96,0.14216157]
[1764218916561,0.7,142.98,142.96,0.14216157]
[1764218916886,7.69365298,142.99,142.96,0.86216157]
[1764218917671,0.7,142.98,142.96,0.14216157]
[1764218919080,6.99365298,142.99,142.96,0.86216157]
[1764218919278,6.99365298,142.99,142.96,0.14216157]
[1764218919585,0.7,142.98,142.96,0.14216157]
[1764218919987,0.7,142.98,142.96,45.88765284]
[1764218924379,0.7,142.98,142.96,45.74549127]
[1764218924771,7.69411973,142.98,142.96,45.74549127]
[1764218925570,0.7,142.97,142.96,45.74549127]
[1764218926282,9.53663607,142.98,142.96,45.74549127]
[1764218928184,7.69411973,142.98,142.96,45.74549127]
[1764218930201,0.7,142.97,142.96,45.74549127]
[1764218930373,6.99411973,142.98,142.96,45.74549127]
[1764218930575,7.69411973,142.98,142.96,45.74549127]
[1764218930776,0.7,142.97,142.96,45.74549127]
[1764218931703,7.69447436,142.97,142.96,45.74549127]
[1764218931872,7.69447436,142.97,142.94,46.44549127]
[1764218932072,0.7,142.96,142.94,45.74549127]
[1764218932602,7.6949744,142.96,142.94,45.74549127]
[1764218933779,7.6949744,142.96,142.94,46.44549127]
[1764218934499,0.7,142.98,142.94,45.74549127]
[1764218934690,0.7,142.97,142.94,46.44549127]
[1764218935528,2.54251634,142.97,142.94,45.74549127]
[1764218935706,18.15138034,142.96,142.94,45.74549127]
[1764218936013,18.85138034,142.96,142.94,45.74549127]
[1764218936304,0.7,142.95,142.94,45.74549127]
[1764218936502,7.69545295,142.95,142.91,56.66498264]
[1764218936890,0.7,142.94,142.91,49.66765284]
[1764218937090,0.7,142.94,142.91,48.96765284]
[1764218937491,0.7,142.94,142.91,45.88765284]
[1764218938102,7.69596086,142.94,142.91,45.88765284]
[1764218938415,7.69596086,142.94,142.91,46.58765284]
[1764218938416,0.7,142.94,142.91,46.58765284]
[1764218940488,7.69597881,142.94,142.91,46.58765284]
[1764218941103,0.7,142.94,142.91,46.58765284]
[1764218941708,7.6960519,142.94,142.91,45.88765284]
[1764218942091,0.7,142.93,142.91,45.88765284]
[1764218942291,6.9960519,142.94,142.91,45.88765284]
[1764218942492,7.6960519,142.94,142.91,46.58765284]
[1764218942894,21.01944298,142.95,142.92,0.7]
[1764218943096,16.308864,142.96,142.93,1.98467791]
[1764218943501,16.308864,142.96,142.94,2.54251634]
[1764218943809,16.308864,142.96,142.94,46.44549127]
[1764218950222,28.00917305,142.98,142.95,0.7]
[1764218950410,21.01502574,142.98,142.95,0.7]
[1764218950723,7.70357196,142.99,142.95,48.28800761]
[1764218951098,7.70357196,142.99,142.96,0.7]
[1764218953427,0.71,142.98,142.95,48.28800761]
[1764218953807,6.99357196,142.99,142.95,45.74549127]
[1764218954005,7.70357196,142.99,142.96,0.7]
[1764218954219,0.71,142.98,142.95,46.44549127]
[1764218954925,7.70407235,142.98,142.95,45.74549127]
[1764218955305,0.71,142.97,142.95,45.74549127]
[1764218957306,7.70449675,142.97,142.95,45.74549127]
[1764218957831,6.99449675,142.97,142.95,45.74549127]
[1764218958052,0.71,142.96,142.95,45.74549127]
[1764218959031,7.70449675,142.97,142.95,45.74549127]
[1764218961027,0.71,142.96,142.95,45.74549127]
[1764218966636,7.70496362,142.96,142.95,45.74549127]
[1764218972148,0.71,142.96,142.95,45.74549127]
[1764218972556,17.018864,142.96,142.95,45.74549127]
[1764218976045,24.01382762,142.96,142.95,45.74549127]
[1764218976551,26.89440272,142.96,142.95,45.74549127]
[1764218976750,38.78434764,142.96,142.91,49.52549127]
[1764218976963,3.5905751,142.95,142.91,49.52549127]
[1764218977258,0.71,142.94,142.91,49.52549127]